[Event "Late Titled Tuesday Blitz February 8 2022"]
[White "Tan, Jun Ying"]
[Black "Iskusnyh, Sergei"]
[WhiteFideId "5710413"]
[BlackFideId "4120027"]
[WhiteElo "1827"]
[BlackElo "2492"]
[Result "0-1"]
[Round "09"]
[TimeControl "180+1"]
[Date "2022.02.09"]
[WhiteClock "0:00:14"]
[BlackClock "0:00:31"]

1. d4 {[%clk 0:03:00]}  d5 {[%clk 0:02:59]} 2. c4 {[%clk 0:03:00]}  c6 {[%clk 0:02:59]} 3. Nf3 {[%clk 0:03:00]}  Nf6 {[%clk 0:02:58]} 4. Nc3 {[%clk 0:02:58]}  dxc4 {[%clk 0:02:58]} 5. e4 {[%clk 0:02:57]}  b5 {[%clk 0:02:53]} 6. Be2 {[%clk 0:02:57]}  e6 {[%clk 0:02:52]} 7. O-O {[%clk 0:02:57]}  Bb7 {[%clk 0:02:51]} 8. Rb1 {[%clk 0:02:55]}  Qc7 {[%clk 0:02:41]} 9. b3 {[%clk 0:02:45]}  b4 {[%clk 0:02:38]} 10. e5 {[%clk 0:02:36]}  Nd5 {[%clk 0:02:38]} 11. Ne4 {[%clk 0:02:12]}  c3 {[%clk 0:02:14]} 12. Bg5 {[%clk 0:02:10]}  Nd7 {[%clk 0:02:13]} 13. a3 {[%clk 0:01:50]}  a5 {[%clk 0:02:11]} 14. axb4 {[%clk 0:01:50]}  axb4 {[%clk 0:02:10]} 15. Ra1 {[%clk 0:01:49]}  Rxa1 {[%clk 0:01:48]} 16. Qxa1 {[%clk 0:01:48]}  h6 {[%clk 0:01:48]} 17. Bh4 {[%clk 0:01:39]}  Qb6 {[%clk 0:01:38]} 18. Qa4 {[%clk 0:01:23]}  g5 {[%clk 0:01:36]} 19. Nfxg5 {[%clk 0:01:05]}  hxg5 {[%clk 0:01:34]} 20. Bxg5 {[%clk 0:01:06]}  Be7 {[%clk 0:01:24]} 21. Nd6+ {[%clk 0:00:57]}  Bxd6 {[%clk 0:01:20]} 22. exd6 {[%clk 0:00:58]}  f6 {[%clk 0:01:16]} 23. Bc1 {[%clk 0:00:43]}  Kf7 {[%clk 0:01:14]} 24. Qa2 {[%clk 0:00:40]}  c5 {[%clk 0:01:13]} 25. Qc2 {[%clk 0:00:31]}  Qxd6 {[%clk 0:01:12]} 26. f4 {[%clk 0:00:28]}  cxd4 {[%clk 0:01:10]} 27. Qd3 {[%clk 0:00:26]}  Nc5 {[%clk 0:01:02]} 28. Qxd4 {[%clk 0:00:24]}  Nxb3 {[%clk 0:01:02]} 29. Qa7 {[%clk 0:00:23]}  Qc5+ {[%clk 0:00:58]} 30. Qxc5 {[%clk 0:00:22]}  Nxc5 {[%clk 0:00:58]} 31. Bc4 {[%clk 0:00:23]}  Nb6 {[%clk 0:00:48]} 32. Bb5 {[%clk 0:00:20]}  Ba6 {[%clk 0:00:47]} 33. Bxa6 {[%clk 0:00:18]}  Nxa6 {[%clk 0:00:47]} 34. Be3 {[%clk 0:00:19]}  Nd5 {[%clk 0:00:45]} 35. Bd4 {[%clk 0:00:19]}  Rc8 {[%clk 0:00:44]} 36. Ra1 {[%clk 0:00:19]}  Rc6 {[%clk 0:00:40]} 37. g3 {[%clk 0:00:17]}  b3 {[%clk 0:00:40]} 38. Ra5 {[%clk 0:00:16]}  b2 {[%clk 0:00:39]} 39. Rb5 {[%clk 0:00:16]}  Nab4 {[%clk 0:00:39]} 40. Bxc3 {[%clk 0:00:15]}  b1=Q+ {[%clk 0:00:39]} 41. Kg2 {[%clk 0:00:15]}  Nxc3 {[%clk 0:00:39]} 42. Rb7+ {[%clk 0:00:15]}  Kg6 {[%clk 0:00:39]} 43. f5+ {[%clk 0:00:14]}  Qxf5 {[%clk 0:00:38]} 44. h4 {[%clk 0:00:14]}  Ne4 {[%clk 0:00:36]} 45. h5+ {[%clk 0:00:13]}  Kxh5 {[%clk 0:00:34]} 46. Rh7+ {[%clk 0:00:12]}  Qxh7 {[%clk 0:00:33]} 47. g4+ {[%clk 0:00:13]}  Kxg4 {[%clk 0:00:32]} 48. Kg1 {[%clk 0:00:14]}  Rc1+ {[%clk 0:00:31]} 0-1


[Site "https://www.chess.com"]

[Event "Late Titled Tuesday Blitz February 8 2022"]
[White "Tregubov, Pavel V."]
[Black "Villegas, Pierre"]
[WhiteFideId "4115341"]
[BlackFideId "654183"]
[WhiteElo "2341"]
[BlackElo "2410"]
[Result "1-0"]
[Round "09"]
[TimeControl "180+1"]
[Date "2022.02.09"]
[WhiteClock "0:00:11"]
[BlackClock "0:00:01"]

1. e4 {[%clk 0:03:00]}  c6 {[%clk 0:02:59]} 2. Nf3 {[%clk 0:02:57]}  d5 {[%clk 0:02:59]} 3. Nc3 {[%clk 0:02:57]}  Bg4 {[%clk 0:02:46]} 4. h3 {[%clk 0:02:57]}  Bxf3 {[%clk 0:02:46]} 5. Qxf3 {[%clk 0:02:57]}  Nf6 {[%clk 0:02:46]} 6. g3 {[%clk 0:02:55]}  dxe4 {[%clk 0:02:42]} 7. Nxe4 {[%clk 0:02:55]}  Nxe4 {[%clk 0:02:42]} 8. Qxe4 {[%clk 0:02:55]}  Qd5 {[%clk 0:02:43]} 9. Bg2 {[%clk 0:02:54]}  e6 {[%clk 0:02:40]} 10. O-O {[%clk 0:02:53]}  Qxe4 {[%clk 0:02:39]} 11. Bxe4 {[%clk 0:02:52]}  Nd7 {[%clk 0:02:39]} 12. d4 {[%clk 0:02:51]}  Nf6 {[%clk 0:02:35]} 13. Bf3 {[%clk 0:02:51]}  O-O-O {[%clk 0:02:36]} 14. Rd1 {[%clk 0:02:49]}  Nd5 {[%clk 0:02:17]} 15. c4 {[%clk 0:02:46]}  Nb4 {[%clk 0:02:14]} 16. Rd2 {[%clk 0:02:29]}  c5 {[%clk 0:01:59]} 17. d5 {[%clk 0:02:16]}  exd5 {[%clk 0:01:48]} 18. cxd5 {[%clk 0:02:16]}  Bd6 {[%clk 0:01:46]} 19. a3 {[%clk 0:02:13]}  Na6 {[%clk 0:01:46]} 20. Rc2 {[%clk 0:02:08]}  Kb8 {[%clk 0:01:42]} 21. Be3 {[%clk 0:02:08]}  Rhe8 {[%clk 0:01:35]} 22. Kg2 {[%clk 0:02:01]}  b6 {[%clk 0:01:32]} 23. Rb1 {[%clk 0:01:51]}  Be5 {[%clk 0:01:24]} 24. b4 {[%clk 0:01:47]}  cxb4 {[%clk 0:01:16]} 25. axb4 {[%clk 0:01:46]}  Nc7 {[%clk 0:01:12]} 26. Rd1 {[%clk 0:01:39]}  Bd6 {[%clk 0:01:08]} 27. Rc4 {[%clk 0:01:34]}  Nb5 {[%clk 0:00:54]} 28. h4 {[%clk 0:01:28]}  Rc8 {[%clk 0:00:50]} 29. Rdc1 {[%clk 0:01:15]}  Rxc4 {[%clk 0:00:49]} 30. Rxc4 {[%clk 0:01:14]}  Rc8 {[%clk 0:00:49]} 31. Rg4 {[%clk 0:01:10]}  g6 {[%clk 0:00:48]} 32. h5 {[%clk 0:01:01]}  f5 {[%clk 0:00:43]} 33. Rh4 {[%clk 0:00:57]}  Be7 {[%clk 0:00:41]} 34. Rh1 {[%clk 0:00:55]}  Bxb4 {[%clk 0:00:35]} 35. Rb1 {[%clk 0:00:50]}  a5 {[%clk 0:00:32]} 36. Bxb6 {[%clk 0:00:51]}  Nc3 {[%clk 0:00:30]} 37. Ra1 {[%clk 0:00:48]}  g5 {[%clk 0:00:19]} 38. Bxa5 {[%clk 0:00:46]}  Bxa5 {[%clk 0:00:18]} 39. Rxa5 {[%clk 0:00:46]}  g4 {[%clk 0:00:18]} 40. d6 {[%clk 0:00:38]}  gxf3+ {[%clk 0:00:18]} 41. Kxf3 {[%clk 0:00:38]}  Rd8 {[%clk 0:00:14]} 42. Rxf5 {[%clk 0:00:35]}  Rxd6 {[%clk 0:00:13]} 43. Rf7 {[%clk 0:00:36]}  h6 {[%clk 0:00:11]} 44. g4 {[%clk 0:00:35]}  Nd5 {[%clk 0:00:11]} 45. Ke4 {[%clk 0:00:34]}  Kc8 {[%clk 0:00:04]} 46. Ke5 {[%clk 0:00:32]}  Rd8 {[%clk 0:00:04]} 47. Rh7 {[%clk 0:00:28]}  Nb4 {[%clk 0:00:04]} 48. Rxh6 {[%clk 0:00:27]}  Nd3+ {[%clk 0:00:04]} 49. Kf5 {[%clk 0:00:26]}  Nxf2 {[%clk 0:00:05]} 50. Ra6 {[%clk 0:00:21]}  Kd7 {[%clk 0:00:05]} 51. h6 {[%clk 0:00:20]}  Ke7 {[%clk 0:00:04]} 52. g5 {[%clk 0:00:13]}  Rf8+ {[%clk 0:00:04]} 53. Kg6 {[%clk 0:00:13]}  Ng4 {[%clk 0:00:04]} 54. Ra7+ {[%clk 0:00:13]}  Ke6 {[%clk 0:00:03]} 55. h7 {[%clk 0:00:13]}  Ne5+ {[%clk 0:00:03]} 56. Kg7 {[%clk 0:00:13]}  Rd8 {[%clk 0:00:01]} 57. h8=Q {[%clk 0:00:13]}  Rxh8 {[%clk 0:00:01]} 58. Kxh8 {[%clk 0:00:13]}  Kf5 {[%clk 0:00:01]} 59. Ra5 {[%clk 0:00:11]}  Ke6 {[%clk 0:00:01]} 60. Rxe5+ {[%clk 0:00:11]}  Kxe5 {[%clk 0:00:01]} 61. g6 {[%clk 0:00:11]} 1-0


[Site "https://www.chess.com"]

[Event "Late Titled Tuesday Blitz February 8 2022"]
[White "Vargas Pereda, Jesus Manue"]
[Black "Clawitter, Craig"]
[WhiteFideId "5115710"]
[BlackFideId "2023105"]
[WhiteElo "1761"]
[BlackElo "2175"]
[Result "1-0"]
[Round "09"]
[TimeControl "180+1"]
[Date "2022.02.09"]
[WhiteClock "0:00:08"]
[BlackClock "0:00:02"]

1. d4 {[%clk 0:02:59]}  e6 {[%clk 0:02:59]} 2. Nf3 {[%clk 0:02:59]}  Nf6 {[%clk 0:03:00]} 3. Bf4 {[%clk 0:02:59]}  b6 {[%clk 0:02:58]} 4. e3 {[%clk 0:02:58]}  Bb7 {[%clk 0:02:59]} 5. Bd3 {[%clk 0:02:58]}  Be7 {[%clk 0:02:56]} 6. O-O {[%clk 0:02:57]}  Nh5 {[%clk 0:02:55]} 7. Be5 {[%clk 0:02:50]}  d6 {[%clk 0:02:54]} 8. Nfd2 {[%clk 0:02:41]}  dxe5 {[%clk 0:02:47]} 9. Qxh5 {[%clk 0:02:40]}  exd4 {[%clk 0:02:44]} 10. exd4 {[%clk 0:02:37]}  Qxd4 {[%clk 0:02:39]} 11. Nc3 {[%clk 0:02:36]}  g6 {[%clk 0:02:17]} 12. Qh6 {[%clk 0:02:27]}  Qg4 {[%clk 0:01:58]} 13. Be4 {[%clk 0:02:19]}  Nc6 {[%clk 0:01:40]} 14. Bf3 {[%clk 0:02:07]}  Qg5 {[%clk 0:01:38]} 15. Qxg5 {[%clk 0:01:58]}  Bxg5 {[%clk 0:01:39]} 16. Nde4 {[%clk 0:01:57]}  Be7 {[%clk 0:01:38]} 17. Rad1 {[%clk 0:01:57]}  f5 {[%clk 0:01:27]} 18. Ng3 {[%clk 0:01:51]}  Rd8 {[%clk 0:01:19]} 19. Nb5 {[%clk 0:01:24]}  Rd7 {[%clk 0:01:05]} 20. Ne2 {[%clk 0:01:05]}  a6 {[%clk 0:01:01]} 21. Nbd4 {[%clk 0:00:56]}  Nxd4 {[%clk 0:01:00]} 22. Nxd4 {[%clk 0:00:41]}  Bxf3 {[%clk 0:00:59]} 23. Nxf3 {[%clk 0:00:41]}  Bf6 {[%clk 0:00:54]} 24. Rxd7 {[%clk 0:00:38]}  Kxd7 {[%clk 0:00:54]} 25. Rd1+ {[%clk 0:00:38]}  Ke7 {[%clk 0:00:53]} 26. b3 {[%clk 0:00:37]}  Rd8 {[%clk 0:00:52]} 27. Re1 {[%clk 0:00:31]}  Rd5 {[%clk 0:00:42]} 28. h3 {[%clk 0:00:26]}  Kd6 {[%clk 0:00:39]} 29. c4 {[%clk 0:00:23]}  Ra5 {[%clk 0:00:34]} 30. Rd1+ {[%clk 0:00:23]}  Ke7 {[%clk 0:00:33]} 31. a4 {[%clk 0:00:23]}  e5 {[%clk 0:00:24]} 32. Nd2 {[%clk 0:00:15]}  b5 {[%clk 0:00:16]} 33. cxb5 {[%clk 0:00:14]}  axb5 {[%clk 0:00:16]} 34. axb5 {[%clk 0:00:13]}  Rxb5 {[%clk 0:00:16]} 35. Ra1 {[%clk 0:00:13]}  e4 {[%clk 0:00:14]} 36. Ra7 {[%clk 0:00:12]}  Be5 {[%clk 0:00:13]} 37. Kf1 {[%clk 0:00:12]}  Rc5 {[%clk 0:00:10]} 38. Ke2 {[%clk 0:00:12]}  Rc2 {[%clk 0:00:09]} 39. Kd1 {[%clk 0:00:11]}  Rb2 {[%clk 0:00:07]} 40. Kc1 {[%clk 0:00:10]}  Rxd2 {[%clk 0:00:03]} 41. Kxd2 {[%clk 0:00:10]}  f4 {[%clk 0:00:03]} 42. b4 {[%clk 0:00:10]}  Kd6 {[%clk 0:00:02]} 43. b5 {[%clk 0:00:10]}  Bd4 {[%clk 0:00:02]} 44. Ra6+ {[%clk 0:00:08]}  Bb6 {[%clk 0:00:02]} 45. f3 {[%clk 0:00:08]} 1-0


[Site "https://www.chess.com"]

[Event "Late Titled Tuesday Blitz February 8 2022"]
[White "Wan, Joseph"]
[Black "Solon, Nathan"]
[WhiteFideId "2069890"]
[BlackFideId "2017229"]
[WhiteElo "2698"]
[BlackElo "2569"]
[Result "1-0"]
[Round "09"]
[TimeControl "180+1"]
[Date "2022.02.09"]
[WhiteClock "0:00:50"]
[BlackClock "0:00:37"]

1. d4 {[%clk 0:03:00]}  d5 {[%clk 0:02:59]} 2. Bf4 {[%clk 0:03:01]}  c5 {[%clk 0:02:58]} 3. e3 {[%clk 0:02:59]}  Nc6 {[%clk 0:02:58]} 4. Nf3 {[%clk 0:02:59]}  Bf5 {[%clk 0:02:54]} 5. Bb5 {[%clk 0:02:49]}  e6 {[%clk 0:02:53]} 6. Ne5 {[%clk 0:02:47]}  Rc8 {[%clk 0:02:49]} 7. O-O {[%clk 0:02:45]}  Ne7 {[%clk 0:02:30]} 8. dxc5 {[%clk 0:02:35]}  f6 {[%clk 0:02:28]} 9. Nxc6 {[%clk 0:02:34]}  Nxc6 {[%clk 0:02:28]} 10. b4 {[%clk 0:02:31]}  e5 {[%clk 0:02:28]} 11. Bg3 {[%clk 0:02:31]}  Kf7 {[%clk 0:02:17]} 12. c3 {[%clk 0:02:29]}  h5 {[%clk 0:02:11]} 13. h3 {[%clk 0:02:26]}  h4 {[%clk 0:02:11]} 14. Bh2 {[%clk 0:02:27]}  Be7 {[%clk 0:02:06]} 15. Nd2 {[%clk 0:02:26]}  g5 {[%clk 0:02:04]} 16. Qf3 {[%clk 0:02:22]}  Qd7 {[%clk 0:02:02]} 17. e4 {[%clk 0:02:11]}  dxe4 {[%clk 0:02:02]} 18. Nxe4 {[%clk 0:02:11]}  g4 {[%clk 0:01:49]} 19. hxg4 {[%clk 0:01:57]}  Bxg4 {[%clk 0:01:50]} 20. Qe3 {[%clk 0:01:58]}  h3 {[%clk 0:01:43]} 21. g3 {[%clk 0:01:51]}  Kg7 {[%clk 0:01:35]} 22. f3 {[%clk 0:01:47]}  Be6 {[%clk 0:01:31]} 23. Rad1 {[%clk 0:01:47]}  Qe8 {[%clk 0:01:25]} 24. f4 {[%clk 0:01:48]}  Qg6 {[%clk 0:01:21]} 25. Bd3 {[%clk 0:01:41]}  f5 {[%clk 0:01:18]} 26. Ng5 {[%clk 0:01:05]}  Bxg5 {[%clk 0:01:15]} 27. fxg5 {[%clk 0:01:01]}  e4 {[%clk 0:01:01]} 28. Be2 {[%clk 0:00:55]}  Rhd8 {[%clk 0:01:00]} 29. Rd6 {[%clk 0:00:50]}  Rxd6 {[%clk 0:00:53]} 30. cxd6 {[%clk 0:00:51]}  Ne5 {[%clk 0:00:37]} 31. Qd4 {[%clk 0:00:50]} 1-0


[Site "https://www.chess.com"]

[Event "Late Titled Tuesday Blitz February 8 2022"]
[White "Wu, Christopher"]
[Black "Wachinger, Guenther"]
[WhiteFideId "2040875"]
[BlackFideId "4604261"]
[WhiteElo "2661"]
[BlackElo "2212"]
[Result "1-0"]
[Round "09"]
[TimeControl "180+1"]
[Date "2022.02.09"]
[WhiteClock "0:00:27"]
[BlackClock "0:00:32"]

1. d4 {[%clk 0:03:00]}  Nf6 {[%clk 0:02:55]} 2. c4 {[%clk 0:03:00]}  c5 {[%clk 0:02:55]} 3. d5 {[%clk 0:02:56]}  b5 {[%clk 0:02:56]} 4. cxb5 {[%clk 0:02:56]}  a6 {[%clk 0:02:56]} 5. Nc3 {[%clk 0:02:48]}  axb5 {[%clk 0:02:55]} 6. e4 {[%clk 0:02:48]}  b4 {[%clk 0:02:48]} 7. Nb5 {[%clk 0:02:48]}  d6 {[%clk 0:02:43]} 8. Bd3 {[%clk 0:02:47]}  g6 {[%clk 0:02:38]} 9. b3 {[%clk 0:02:43]}  Bg7 {[%clk 0:02:38]} 10. Bb2 {[%clk 0:02:41]}  O-O {[%clk 0:02:38]} 11. Qe2 {[%clk 0:02:38]}  Nbd7 {[%clk 0:02:34]} 12. Nf3 {[%clk 0:02:37]}  Ba6 {[%clk 0:02:34]} 13. O-O {[%clk 0:02:33]}  Bxb5 {[%clk 0:02:31]} 14. Bxb5 {[%clk 0:02:33]}  Ng4 {[%clk 0:02:32]} 15. Bxg7 {[%clk 0:02:27]}  Kxg7 {[%clk 0:02:33]} 16. Nd2 {[%clk 0:02:22]}  Ngf6 {[%clk 0:02:17]} 17. f4 {[%clk 0:02:19]}  Ra5 {[%clk 0:02:11]} 18. Bd3 {[%clk 0:02:17]}  Qa8 {[%clk 0:02:09]} 19. Nc4 {[%clk 0:02:16]}  Ra7 {[%clk 0:02:08]} 20. g4 {[%clk 0:02:08]}  Rb8 {[%clk 0:02:06]} 21. g5 {[%clk 0:02:05]}  Ne8 {[%clk 0:02:06]} 22. h4 {[%clk 0:01:52]}  Nb6 {[%clk 0:02:01]} 23. f5 {[%clk 0:01:42]}  Nxc4 {[%clk 0:01:37]} 24. Bxc4 {[%clk 0:01:43]}  Qb7 {[%clk 0:01:32]} 25. e5 {[%clk 0:01:29]}  Qc7 {[%clk 0:01:31]} 26. fxg6 {[%clk 0:01:07]}  hxg6 {[%clk 0:01:26]} 27. Qf3 {[%clk 0:01:02]}  f6 {[%clk 0:01:10]} 28. exf6+ {[%clk 0:01:02]}  exf6 {[%clk 0:01:10]} 29. gxf6+ {[%clk 0:01:03]}  Kf7 {[%clk 0:01:10]} 30. Rae1 {[%clk 0:00:59]}  Qd8 {[%clk 0:01:08]} 31. Re6 {[%clk 0:00:38]}  Rbb7 {[%clk 0:00:39]} 32. h5 {[%clk 0:00:30]}  gxh5 {[%clk 0:00:32]} 33. Qxh5+ {[%clk 0:00:30]}  Kg8 {[%clk 0:00:32]} 34. Rxe8+ {[%clk 0:00:26]}  Qxe8 {[%clk 0:00:32]} 35. Qxe8+ {[%clk 0:00:27]}  Kh7 {[%clk 0:00:32]} 36. Bd3+ {[%clk 0:00:27]}  Kh6 {[%clk 0:00:32]} 37. Qg6# {[%clk 0:00:27]} 1-0


[Site "https://www.chess.com"]

[Event "Late Titled Tuesday Blitz February 8 2022"]
[White "Aaditya Dhingra"]
[Black "Jaferian, Koosha"]
[WhiteFideId "25678191"]
[BlackFideId "12507440"]
[WhiteElo "1789"]
[BlackElo "2027"]
[Result "1/2-1/2"]
[Round "10"]
[TimeControl "180+1"]
[Date "2022.02.09"]
[WhiteClock "0:00:07"]
[BlackClock "0:00:05"]

1. e4 {[%clk 0:02:44]}  c6 {[%clk 0:02:58]} 2. d4 {[%clk 0:02:36]}  d5 {[%clk 0:02:59]} 3. exd5 {[%clk 0:02:36]}  cxd5 {[%clk 0:02:59]} 4. c4 {[%clk 0:02:37]}  Nf6 {[%clk 0:02:58]} 5. Nc3 {[%clk 0:02:37]}  Nc6 {[%clk 0:02:54]} 6. Bg5 {[%clk 0:02:36]}  dxc4 {[%clk 0:02:51]} 7. d5 {[%clk 0:02:33]}  Ne5 {[%clk 0:02:50]} 8. Qd4 {[%clk 0:02:32]}  h6 {[%clk 0:02:50]} 9. Qxe5 {[%clk 0:02:28]}  hxg5 {[%clk 0:02:50]} 10. Bxc4 {[%clk 0:02:28]}  a6 {[%clk 0:02:34]} 11. a4 {[%clk 0:02:26]}  g6 {[%clk 0:02:28]} 12. Nf3 {[%clk 0:02:22]}  g4 {[%clk 0:02:27]} 13. Ng5 {[%clk 0:02:21]}  Bg7 {[%clk 0:02:13]} 14. d6 {[%clk 0:02:19]}  e6 {[%clk 0:02:11]} 15. Nce4 {[%clk 0:02:10]}  O-O {[%clk 0:02:07]} 16. h4 {[%clk 0:01:39]}  Nxe4 {[%clk 0:01:22]} 17. Qxe4 {[%clk 0:01:38]}  Qxd6 {[%clk 0:01:16]} 18. h5 {[%clk 0:01:06]}  Qb4+ {[%clk 0:01:16]} 19. Kf1 {[%clk 0:01:04]}  b5 {[%clk 0:00:42]} 20. axb5 {[%clk 0:00:47]}  Bb7 {[%clk 0:00:41]} 21. Qxb7 {[%clk 0:00:40]}  Qxc4+ {[%clk 0:00:41]} 22. Kg1 {[%clk 0:00:39]}  Qxb5 {[%clk 0:00:35]} 23. Qxb5 {[%clk 0:00:28]}  axb5 {[%clk 0:00:36]} 24. Rxa8 {[%clk 0:00:26]}  Rxa8 {[%clk 0:00:37]} 25. hxg6 {[%clk 0:00:24]}  Ra1+ {[%clk 0:00:37]} 26. Kh2 {[%clk 0:00:22]}  Rxh1+ {[%clk 0:00:38]} 27. Kxh1 {[%clk 0:00:21]}  fxg6 {[%clk 0:00:36]} 28. b4 {[%clk 0:00:17]}  e5 {[%clk 0:00:22]} 29. Ne6 {[%clk 0:00:14]}  Bf8 {[%clk 0:00:20]} 30. Nc7 {[%clk 0:00:13]}  Bxb4 {[%clk 0:00:20]} 31. Nxb5 {[%clk 0:00:13]}  Bc5 {[%clk 0:00:18]} 32. f3 {[%clk 0:00:13]}  gxf3 {[%clk 0:00:18]} 33. gxf3 {[%clk 0:00:14]}  Kf7 {[%clk 0:00:19]} 34. Kg2 {[%clk 0:00:14]}  Kf6 {[%clk 0:00:19]} 35. Kg3 {[%clk 0:00:11]}  Kf5 {[%clk 0:00:18]} 36. Nc3 {[%clk 0:00:11]}  Be3 {[%clk 0:00:19]} 37. Kg2 {[%clk 0:00:11]}  Bc5 {[%clk 0:00:15]} 38. Ne4 {[%clk 0:00:10]}  Bb4 {[%clk 0:00:16]} 39. Ng3+ {[%clk 0:00:10]}  Kf4 {[%clk 0:00:12]} 40. Ne2+ {[%clk 0:00:10]}  Ke3 {[%clk 0:00:12]} 41. Ng1 {[%clk 0:00:10]}  Be7 {[%clk 0:00:07]} 42. Nh3 {[%clk 0:00:09]}  Bh4 {[%clk 0:00:07]} 43. Ng1 {[%clk 0:00:09]}  Kf4 {[%clk 0:00:05]} 44. Ne2+ {[%clk 0:00:08]}  Kf5 {[%clk 0:00:05]} 45. Nc3 {[%clk 0:00:08]}  Be7 {[%clk 0:00:05]} 46. Kh3 {[%clk 0:00:06]}  Bf8 {[%clk 0:00:05]} 47. Kg3 {[%clk 0:00:06]}  Bh6 {[%clk 0:00:05]} 48. Ne4 {[%clk 0:00:06]}  Bf4+ {[%clk 0:00:06]} 49. Kg2 {[%clk 0:00:06]}  g5 {[%clk 0:00:06]} 50. Nf2 {[%clk 0:00:06]}  Be3 {[%clk 0:00:06]} 51. Nd3 {[%clk 0:00:06]}  Ba7 {[%clk 0:00:06]} 52. Nb4 {[%clk 0:00:05]}  Bc5 {[%clk 0:00:05]} 53. Nd3 {[%clk 0:00:05]}  Bd6 {[%clk 0:00:06]} 54. Nb2 {[%clk 0:00:05]}  Kf4 {[%clk 0:00:03]} 55. Nc4 {[%clk 0:00:05]}  Bc5 {[%clk 0:00:03]} 56. Nb2 {[%clk 0:00:05]}  Bd4 {[%clk 0:00:03]} 57. Nd3+ {[%clk 0:00:05]}  Ke3 {[%clk 0:00:03]} 58. Nb4 {[%clk 0:00:05]}  Kf4 {[%clk 0:00:02]} 59. Nd5+ {[%clk 0:00:05]}  Kf5 {[%clk 0:00:02]} 60. Nb4 {[%clk 0:00:05]}  Ba7 {[%clk 0:00:02]} 61. Nd3 {[%clk 0:00:06]}  Bb8 {[%clk 0:00:03]} 62. Nb4 {[%clk 0:00:06]}  Bd6 {[%clk 0:00:03]} 63. Nd3 {[%clk 0:00:06]}  Bf8 {[%clk 0:00:03]} 64. Nf2 {[%clk 0:00:06]}  Bg7 {[%clk 0:00:04]} 65. Ne4 {[%clk 0:00:07]}  Kf4 {[%clk 0:00:03]} 66. Ng3 {[%clk 0:00:08]}  g4 {[%clk 0:00:02]} 67. Nh5+ {[%clk 0:00:08]}  Ke3 {[%clk 0:00:02]} 68. fxg4 {[%clk 0:00:08]}  Bh6 {[%clk 0:00:02]} 69. g5 {[%clk 0:00:08]}  Bxg5 {[%clk 0:00:02]} 70. Ng3 {[%clk 0:00:09]}  Kf4 {[%clk 0:00:03]} 71. Ne2+ {[%clk 0:00:09]}  Kf5 {[%clk 0:00:03]} 72. Ng3+ {[%clk 0:00:09]}  Kg4 {[%clk 0:00:04]} 73. Ne2 {[%clk 0:00:10]}  Be7 {[%clk 0:00:04]} 74. Ng3 {[%clk 0:00:10]}  Kf4 {[%clk 0:00:04]} 75. Ne2+ {[%clk 0:00:09]}  Ke3 {[%clk 0:00:04]} 76. Ng3 {[%clk 0:00:09]}  Kd3 {[%clk 0:00:05]} 77. Kf3 {[%clk 0:00:09]}  Kd4 {[%clk 0:00:03]} 78. Nf5+ {[%clk 0:00:08]}  Kd3 {[%clk 0:00:03]} 79. Nxe7 {[%clk 0:00:09]}  e4+ {[%clk 0:00:04]} 80. Kf2 {[%clk 0:00:07]}  Kd2 {[%clk 0:00:05]} 81. Nf5 {[%clk 0:00:07]}  e3+ {[%clk 0:00:05]} 82. Nxe3 {[%clk 0:00:07]} 1/2-1/2


[Site "https://www.chess.com"]

[Event "Late Titled Tuesday Blitz February 8 2022"]
[White "Adewumi, Tanitoluwa"]
[Black "Daggupati, Balaji"]
[WhiteFideId "30966396"]
[BlackFideId "2090759"]
[WhiteElo "2488"]
[BlackElo "2743"]
[Result "0-1"]
[Round "10"]
[TimeControl "180+1"]
[Date "2022.02.08"]
[WhiteClock "0:00:06"]
[BlackClock "0:00:29"]

1. b3 {[%clk 0:02:56]}  e5 {[%clk 0:02:58]} 2. Bb2 {[%clk 0:02:55]}  Nc6 {[%clk 0:02:59]} 3. e3 {[%clk 0:02:54]}  Nf6 {[%clk 0:02:59]} 4. Bb5 {[%clk 0:02:54]}  Bd6 {[%clk 0:03:00]} 5. Nf3 {[%clk 0:02:54]}  Qe7 {[%clk 0:02:59]} 6. O-O {[%clk 0:02:48]}  O-O {[%clk 0:02:54]} 7. d3 {[%clk 0:02:36]}  a6 {[%clk 0:02:53]} 8. Bxc6 {[%clk 0:02:36]}  dxc6 {[%clk 0:02:53]} 9. Nbd2 {[%clk 0:02:36]}  Bg4 {[%clk 0:02:47]} 10. Qe1 {[%clk 0:02:35]}  Rae8 {[%clk 0:02:36]} 11. h3 {[%clk 0:02:26]}  Bc8 {[%clk 0:02:29]} 12. e4 {[%clk 0:02:20]}  Nh5 {[%clk 0:02:28]} 13. Nc4 {[%clk 0:02:17]}  Qf6 {[%clk 0:02:20]} 14. Nxd6 {[%clk 0:01:57]}  cxd6 {[%clk 0:02:20]} 15. Qe3 {[%clk 0:01:58]}  Nf4 {[%clk 0:02:06]} 16. Kh2 {[%clk 0:01:58]}  Qg6 {[%clk 0:02:02]} 17. Nh4 {[%clk 0:01:20]}  Qh5 {[%clk 0:01:59]} 18. Qg3 {[%clk 0:00:53]}  Ne2 {[%clk 0:01:55]} 19. Qf3 {[%clk 0:00:53]}  Qxh4 {[%clk 0:01:51]} 20. Qxe2 {[%clk 0:00:53]}  f5 {[%clk 0:01:50]} 21. exf5 {[%clk 0:00:51]}  Bxf5 {[%clk 0:01:44]} 22. Rae1 {[%clk 0:00:46]}  Re6 {[%clk 0:01:38]} 23. Qe3 {[%clk 0:00:41]}  Rg6 {[%clk 0:01:36]} 24. f4 {[%clk 0:00:37]}  exf4 {[%clk 0:00:31]} 25. Qxf4 {[%clk 0:00:29]}  Rxg2+ {[%clk 0:00:28]} 26. Kxg2 {[%clk 0:00:25]}  Bxh3+ {[%clk 0:00:28]} 27. Kh2 {[%clk 0:00:19]}  Rxf4 {[%clk 0:00:28]} 28. Rxf4 {[%clk 0:00:11]}  Qxf4+ {[%clk 0:00:29]} 29. Kxh3 {[%clk 0:00:05]}  Qf3+ {[%clk 0:00:29]} 30. Kh2 {[%clk 0:00:06]}  Qf2+ {[%clk 0:00:30]} 31. Kh3 {[%clk 0:00:06]}  Qxe1 {[%clk 0:00:29]} 0-1


[Site "https://www.chess.com"]

[Event "Late Titled Tuesday Blitz February 8 2022"]
[White "Alimpic, Aleksa"]
[Black "Rudykh, Stepan"]
[WhiteFideId "974323"]
[BlackFideId "4180321"]
[WhiteElo "2131"]
[BlackElo "2146"]
[Result "0-1"]
[Round "10"]
[TimeControl "180+1"]
[Date "2022.02.09"]
[WhiteClock "0:00:03"]
[BlackClock "0:01:14"]

1. Nf3 {[%clk 0:03:00]}  e6 {[%clk 0:02:59]} 2. g3 {[%clk 0:03:00]}  f5 {[%clk 0:02:58]} 3. Bg2 {[%clk 0:02:57]}  Nf6 {[%clk 0:02:59]} 4. O-O {[%clk 0:02:56]}  Be7 {[%clk 0:02:58]} 5. d4 {[%clk 0:02:54]}  O-O {[%clk 0:02:59]} 6. c4 {[%clk 0:02:45]}  d6 {[%clk 0:02:58]} 7. Nc3 {[%clk 0:02:45]}  Ne4 {[%clk 0:02:58]} 8. Qc2 {[%clk 0:02:43]}  Nxc3 {[%clk 0:02:58]} 9. Qxc3 {[%clk 0:02:44]}  a5 {[%clk 0:02:58]} 10. b3 {[%clk 0:02:39]}  Nc6 {[%clk 0:02:56]} 11. Bb2 {[%clk 0:02:38]}  Bf6 {[%clk 0:02:56]} 12. Rad1 {[%clk 0:02:33]}  Qe8 {[%clk 0:02:55]} 13. Qc2 {[%clk 0:02:22]}  e5 {[%clk 0:02:54]} 14. dxe5 {[%clk 0:02:20]}  dxe5 {[%clk 0:02:53]} 15. e4 {[%clk 0:02:14]}  f4 {[%clk 0:02:45]} 16. Ba3 {[%clk 0:01:43]}  Rf7 {[%clk 0:02:36]} 17. Rd3 {[%clk 0:01:41]}  g5 {[%clk 0:02:32]} 18. Qd2 {[%clk 0:01:00]}  g4 {[%clk 0:02:14]} 19. Ne1 {[%clk 0:00:58]}  f3 {[%clk 0:02:13]} 20. Bh1 {[%clk 0:00:59]}  Nd4 {[%clk 0:02:13]} 21. Rxd4 {[%clk 0:00:52]}  exd4 {[%clk 0:02:14]} 22. Nc2 {[%clk 0:00:47]}  Qxe4 {[%clk 0:02:01]} 23. Re1 {[%clk 0:00:48]}  Qg6 {[%clk 0:02:00]} 24. Nxd4 {[%clk 0:00:40]}  Bd7 {[%clk 0:01:56]} 25. Nb5 {[%clk 0:00:29]}  Bxb5 {[%clk 0:01:48]} 26. cxb5 {[%clk 0:00:30]}  b6 {[%clk 0:01:47]} 27. Qd5 {[%clk 0:00:15]}  Rd8 {[%clk 0:01:43]} 28. Qb7 {[%clk 0:00:15]}  Rfd7 {[%clk 0:01:36]} 29. Bxf3 {[%clk 0:00:06]}  gxf3 {[%clk 0:01:35]} 30. Qxf3 {[%clk 0:00:07]}  Rf7 {[%clk 0:01:24]} 31. Re6 {[%clk 0:00:03]}  Qg7 {[%clk 0:01:20]} 32. Qc6 {[%clk 0:00:03]}  Bd4 {[%clk 0:01:14]} 0-1


[Site "https://www.chess.com"]